bitfinex-derivatives/quotes_BTCF0:USTF0_20251108
["timestamp","ask_amount","ask_price","bid_price","bid_amount"]
[1762567208951,0.18126939,103070.0,103060.0,0.54298957]
[1762567209153,0.05898,103070.0,103060.0,0.54298957]
[1762567209655,0.1560742,103070.0,103060.0,0.54298957]
[1762567209952,0.1570742,103070.0,103060.0,0.54198957]
[1762567210152,0.1560742,103070.0,103060.0,0.54198957]
[1762567211155,0.18126939,103070.0,103060.0,0.54198957]
[1762567213147,0.27836359,103070.0,103060.0,0.54198957]
[1762567214751,0.36572782,103070.0,103060.0,0.54198957]
[1762567215048,0.24343843,103070.0,103060.0,0.54198957]
[1762567216353,0.24343843,103070.0,103060.0,0.4590426]
[1762567216659,0.3263854,103070.0,103060.0,0.44489257]
[1762567217548,0.3263854,103070.0,103060.0,0.54199617]
[1762567218057,0.2292912,103070.0,103060.0,0.54199617]
[1762567218356,0.3263854,103070.0,103060.0,0.54199617]
[1762567221353,0.2292912,103070.0,103060.0,0.54199617]
[1762567222254,0.24343843,103070.0,103060.0,0.54199617]
[1762567223758,0.14634423,103070.0,103060.0,0.54199617]
[1762567225652,0.24343843,103070.0,103060.0,0.54199617]
[1762567225862,0.3263854,103070.0,103060.0,0.54199617]
[1762567226655,0.2292912,103070.0,103060.0,0.54199617]
[1762567227459,0.14192697,103070.0,103060.0,0.54199617]
[1762567228862,0.23902117,103070.0,103060.0,0.54199617]
[1762567229055,0.14192697,103070.0,103060.0,0.54199617]
[1762567229255,0.36131056,103070.0,103060.0,0.54199617]
[1762567229962,0.36131056,103070.0,103060.0,0.52936543]
[1762567232364,0.26421636,103070.0,103060.0,0.52936543]
[1762567233264,0.36131056,103070.0,103060.0,0.52936543]
[1762567233765,0.44869353,103070.0,103060.0,0.52936543]
[1762567234166,0.32640414,103070.0,103060.0,0.52936543]
[1762567235266,0.22930994,103070.0,103060.0,0.52936543]
[1762567235469,0.32640414,103070.0,103060.0,0.52936543]
[1762567236467,0.23902117,103070.0,103060.0,0.52936543]
[1762567237167,0.1560742,103070.0,103060.0,0.52936543]
[1762567237467,0.23902117,103070.0,103060.0,0.52936543]
[1762567237659,0.32641863,103070.0,103060.0,0.52936543]
[1762567240769,0.32641863,103070.0,103060.0,0.44641846]
[1762567241468,0.23902117,103070.0,103060.0,0.52936543]
[1762567241663,0.36131056,103070.0,103060.0,0.52936543]
[1762567244165,0.36131056,103070.0,103060.0,0.44641846]
[1762567244370,0.36131056,103070.0,103060.0,0.52936543]
[1762567245861,0.1543136,103060.0,103050.0,0.4579057]
[1762567246063,0.32468632,103060.0,103050.0,0.4579057]
[1762567247072,0.35954996,103060.0,103050.0,0.4579057]
[1762567247271,0.36054996,103060.0,103050.0,0.4589057]
[1762567248171,0.35954996,103060.0,103050.0,0.4579057]
[1762567248372,0.36154996,103060.0,103050.0,0.4579057]
[1762567248567,0.36254996,103060.0,103050.0,0.4579057]
[1762567248768,0.05721,103050.0,103040.0,0.4579163]
[1762567248967,0.22751796,103050.0,103040.0,0.4579163]
[1762567250169,0.22951796,103050.0,103040.0,0.4589163]
[1762567250474,0.24368399,103050.0,103040.0,0.54186327]
[1762567250974,0.32663096,103050.0,103040.0,0.54186327]
[1762567251662,0.24368399,103050.0,103040.0,0.54186327]
[1762567252772,0.32663096,103050.0,103040.0,0.54186327]
[1762567252969,0.14657099,103050.0,103040.0,0.54186327]
[1762567253170,0.24368399,103050.0,103040.0,0.54186327]
[1762567253674,0.14657099,103050.0,103040.0,0.54186327]
[1762567254176,0.24368399,103050.0,103040.0,0.54186327]
[1762567254576,0.14657099,103050.0,103040.0,0.54186327]
[1762567254873,0.08936099,103050.0,103040.0,0.62481024]
[1762567255078,0.08936099,103050.0,103040.0,0.70775721]
[1762567255375,0.08936099,103050.0,103040.0,0.62481024]
[1762567255376,0.05921,103050.0,103040.0,0.62481024]
[1762567255975,0.03772,103050.0,103040.0,0.62481024]
[1762567256578,0.01476,103050.0,103040.0,0.62481024]
[1762567261678,0.03736,103050.0,103040.0,0.62481024]
[1762567261881,0.05926,103050.0,103040.0,0.62481024]
[1762567262178,0.03736,103050.0,103040.0,0.62481024]
[1762567263185,0.05926,103050.0,103040.0,0.62481024]
[1762567263382,0.01476,103050.0,103040.0,0.62481024]
[1762567263583,0.05926,103050.0,103040.0,0.62481024]
[1762567264175,0.03594015,103050.0,103040.0,0.62481024]
[1762567264483,0.13728114,103050.0,103040.0,0.56953089]
[1762567264983,0.11971286,103050.0,103040.0,0.71913089]
[1762567265183,0.21681626,103050.0,103040.0,0.6085163]
[1762567265477,0.30417877,103050.0,103040.0,0.6085163]
[1762567265676,0.11971438,103050.0,103040.0,0.6085163]
[1762567266080,0.11971438,103050.0,103040.0,0.71913089]
[1762567266273,0.09781438,103050.0,103040.0,0.71913089]
[1762567266682,0.11971438,103050.0,103040.0,0.71913089]
[1762567269784,0.09781438,103050.0,103040.0,0.71913089]
[1762567270086,0.11971438,103050.0,103040.0,0.71913089]
[1762567270982,0.11971438,103050.0,103040.0,0.56953089]
[1762567279792,0.11971438,103050.0,103040.0,0.20873089]
[1762567279991,0.11971438,103050.0,103040.0,0.93033089]
[1762567281790,0.25763814,103050.0,103040.0,0.3618]
[1762567282293,0.23426112,103050.0,103040.0,0.3618]
[1762567282690,0.14702355,103050.0,103040.0,0.3618]
[1762567283292,0.23424324,103050.0,103040.0,0.4589129]
[1762567283492,0.14902355,103050.0,103040.0,0.4589129]
[1762567283897,0.23624452,103050.0,103040.0,0.4589129]
[1762567284898,0.13914112,103050.0,103040.0,0.4589129]
[1762567285097,0.23624452,103050.0,103040.0,0.4589129]
[1762567287993,0.13914112,103050.0,103040.0,0.4589129]
[1762567288194,0.13914112,103050.0,103040.0,0.56952749]
[1762567288898,0.05192015,103050.0,103040.0,0.56952749]
[1762567289999,0.13914112,103050.0,103040.0,0.56952749]
[1762567291202,0.12163876,103050.0,103040.0,0.56952749]
[1762567292505,0.10421105,103050.0,103040.0,0.59489075]
[1762567294904,0.10421105,103050.0,103040.0,0.56952749]
[1762567299203,0.13914112,103050.0,103040.0,0.56952749]
[1762567299410,0.05192015,103050.0,103040.0,0.56952749]
[1762567300901,0.14902365,103050.0,103040.0,0.56952749]
[1762567301096,0.23624462,103050.0,103040.0,0.56952749]
[1762567301509,0.23624462,103050.0,103040.0,0.4589129]
[1762567301806,0.23624462,103050.0,103040.0,0.3618]
[1762567302007,0.23624462,103050.0,103040.0,0.4589129]
[1762567308413,0.14902365,103050.0,103040.0,0.4589129]
[1762567310909,0.27131304,103050.0,103040.0,0.4589129]
[1762567311305,0.14902365,103050.0,103040.0,0.4589129]
[1762567311816,0.27131304,103050.0,103040.0,0.4589129]
[1762567312207,0.14902365,103050.0,103040.0,0.4589129]
[1762567312609,0.27131304,103050.0,103040.0,0.4589129]
[1762567315028,0.3585034,103050.0,103040.0,0.4589129]
[1762567315323,0.23621401,103050.0,103040.0,0.4589129]
[1762567315614,0.13911051,103050.0,103040.0,0.4589129]
[1762567315822,0.14902355,103050.0,103040.0,0.4589129]
[1762567318913,0.27131294,103050.0,103040.0,0.4589129]
[1762567321421,0.27131304,103050.0,103040.0,0.4589129]
[1762567321922,0.17420954,103050.0,103040.0,0.4589129]
[1762567322110,0.27131304,103050.0,103040.0,0.4589129]
[1762567322917,0.27131304,103050.0,103040.0,0.3618]
[1762567323119,0.27131304,103050.0,103040.0,0.4589129]
[1762567323919,0.17420954,103050.0,103040.0,0.4589129]
[1762567324322,0.27131304,103050.0,103040.0,0.4589129]
[1762567325229,0.17420954,103050.0,103040.0,0.56952749]
[1762567326028,0.26143713,103050.0,103040.0,0.56952749]
[1762567326233,0.13914774,103050.0,103040.0,0.56952749]
[1762567326522,0.13914774,103050.0,103040.0,0.62484952]
[1762567328121,0.12446759,103050.0,103040.0,0.62484952]
[1762567328323,0.10320759,103050.0,103040.0,0.62484952]
[1762567328623,0.14773759,103050.0,103040.0,0.62484952]
[1762567330430,0.13028791,103050.0,103040.0,1.10001783]
[1762567330631,0.08575791,103050.0,103040.0,0.85741783]
[1762567330823,0.08575791,103050.0,103040.0,1.01704952]
[1762567331336,0.08575791,103050.0,103040.0,0.95041783]
[1762567331525,0.07177791,103050.0,103040.0,0.70781783]
[1762567331833,0.05432198,103050.0,103040.0,0.95041783]
[1762567334126,0.05432198,103050.0,103040.0,0.70781783]
[1762567334633,0.05432198,103050.0,103040.0,0.95041783]
[1762567334835,0.05432198,103050.0,103040.0,0.70781783]
[1762567335035,8e-08,103050.0,103040.0,0.95041783]
[1762567335228,8e-08,103050.0,103040.0,0.70781783]
[1762567335428,8e-08,103050.0,103040.0,0.95041783]
[1762567336434,0.01276,103060.0,103050.0,0.0971035]
[1762567336635,0.01276,103060.0,103050.0,0.62384012]
[1762567337732,0.01676,103060.0,103050.0,0.62384012]
[1762567337934,0.06129,103060.0,103050.0,0.62384012]
[1762567338932,0.05829,103060.0,103050.0,0.62384012]
[1762567339128,0.05929,103060.0,103050.0,0.62884012]
[1762567339927,0.05929,103060.0,103050.0,0.62984012]
[1762567341337,0.05929,103060.0,103050.0,0.77944012]
[1762567341736,0.04953415,103060.0,103050.0,0.77944012]
[1762567342237,0.02626415,103060.0,103050.0,0.77944012]
[1762567342536,0.01556,103060.0,103050.0,0.77944012]
[1762567343825,0.03682,103060.0,103050.0,0.77944012]
[1762567344032,0.01556,103060.0,103050.0,0.77944012]
[1762567344932,0.08533791,103060.0,103050.0,0.77944012]
[1762567345240,0.12986791,103060.0,103050.0,0.62984012]
[1762567345440,0.10659791,103060.0,103050.0,0.62984012]
[1762567346031,0.12986791,103060.0,103050.0,0.62984012]
[1762567353537,0.10659791,103060.0,103050.0,0.62984012]
[1762567354034,0.10847791,103060.0,103050.0,0.62984012]
[1762567354446,0.13164791,103060.0,103050.0,0.62984012]
[1762567357645,0.13164791,103060.0,103050.0,0.54687181]
[1762567357835,0.11422513,103060.0,103050.0,0.54687181]
[1762567358029,0.06187,103060.0,103050.0,0.54687181]
[1762567358230,0.13164791,103060.0,103050.0,0.54687181]
[1762567360332,0.06187,103060.0,103050.0,0.54687181]
[1762567360537,0.06187,103060.0,103050.0,0.4639035]
[1762567360745,0.06187,103060.0,103050.0,0.54687181]
[1762567363447,0.06187,103060.0,103050.0,0.18607181]
[1762567363642,0.06187,103060.0,103050.0,0.90767181]
[1762567368054,0.158964,103060.0,103050.0,0.90767181]
[1762567368247,0.22874191,103060.0,103050.0,0.90767181]
[1762567368642,0.24619159,103060.0,103050.0,0.90767181]
[1762567369350,0.14909759,103060.0,103050.0,0.90767181]
[1762567369850,0.06187,103060.0,103050.0,0.90767181]
[1762567371353,0.14909759,103060.0,103050.0,0.90767181]
[1762567374951,0.24619159,103060.0,103050.0,0.90767181]
[1762567375152,0.14909759,103060.0,103050.0,0.90767181]
[1762567377345,0.24619159,103060.0,103050.0,0.90767181]
[1762567379151,0.24619159,103060.0,103050.0,0.90767171]
[1762567380353,0.24619159,103060.0,103050.0,0.7276]
[1762567380549,0.24619159,103060.0,103050.0,0.81056831]
[1762567380751,0.14909759,103060.0,103050.0,0.90767171]
[1762567382856,0.24619159,103060.0,103050.0,0.90767171]
[1762567383255,0.14909759,103060.0,103050.0,0.90767171]
[1762567384057,0.24619159,103060.0,103050.0,0.90767171]
[1762567384256,0.14909759,103060.0,103050.0,0.90767171]
[1762567386245,0.14909759,103060.0,103050.0,0.99064002]
[1762567386555,0.08543022,103060.0,103050.0,0.99064002]
[1762567387758,0.002,103060.0,103050.0,0.99064002]
[1762567388358,0.002,103060.0,103050.0,1.17787601]
[1762567388555,0.05437911,103060.0,103050.0,1.17787601]
[1762567388755,0.002,103060.0,103050.0,1.32747601]
[1762567389060,0.07001582,103070.0,103060.0,0.097094]
[1762567389360,0.07001582,103070.0,103060.0,0.71806661]
[1762567389563,0.0001456,103070.0,103060.0,0.71806661]
[1762567389764,0.0001456,103070.0,103060.0,0.96062661]
[1762567390259,0.0011456,103070.0,103060.0,0.96162661]
[1762567390462,0.0021456,103070.0,103060.0,0.96262661]
[1762567390664,0.0021456,103070.0,103060.0,0.72006661]
[1762567390852,0.0021456,103070.0,103060.0,0.96262661]
[1762567391052,0.0021456,103070.0,103060.0,0.72006661]
[1762567391566,0.0021456,103070.0,103060.0,0.96762661]
[1762567392063,0.0011456,103070.0,103060.0,0.96162661]
[1762567392265,0.0031456,103070.0,103060.0,0.72506661]
[1762567392463,0.0031456,103070.0,103060.0,0.96762661]
[1762567393167,0.0041456,103070.0,103060.0,0.72706661]
[1762567393459,0.0041456,103070.0,103060.0,0.96962661]
[1762567394560,0.0041456,103070.0,103060.0,0.72706661]
[1762567394864,0.0041456,103070.0,103060.0,0.99543504]
[1762567395066,0.0041456,103070.0,103060.0,0.96962661]
[1762567397270,0.0041456,103070.0,103060.0,0.72706661]
[1762567397459,0.0041456,103070.0,103060.0,0.96962661]
[1762567397661,0.0041456,103070.0,103060.0,0.72706661]
[1762567398465,0.0041456,103070.0,103060.0,0.96962661]
[1762567398666,0.0041456,103070.0,103060.0,0.72706661]
[1762567398870,0.0176756,103070.0,103060.0,0.96962661]
[1762567399266,0.0176756,103070.0,103060.0,0.72706661]
[1762567399466,0.0176756,103070.0,103060.0,0.96962661]
[1762567400272,0.0176756,103070.0,103060.0,0.72706661]
[1762567400468,0.0176756,103070.0,103060.0,0.96962661]
[1762567401172,0.0041456,103070.0,103060.0,0.96962661]
[1762567401569,1e-07,103070.0,103060.0,0.96962661]
[1762567403073,1e-07,103070.0,103060.0,1.33042661]
[1762567403773,1e-07,103070.0,103060.0,1.08786661]
[1762567404073,1e-07,103070.0,103060.0,1.33042661]
[1762567404768,0.0134456,103080.0,103070.0,0.0970846]
[1762567404968,0.0134456,103080.0,103070.0,0.67902982]
[1762567405168,0.0134456,103080.0,103070.0,0.56845721]
[1762567406176,0.0144456,103080.0,103070.0,0.57245721]
[1762567406367,0.0154456,103080.0,103070.0,0.58045721]
[1762567406870,0.0377156,103080.0,103070.0,0.58045721]
[1762567407773,0.0596356,103080.0,103070.0,0.58045721]
[1762567408376,0.0377156,103080.0,103070.0,0.58045721]
[1762567410382,0.0596356,103080.0,103070.0,0.58045721]
[1762567410673,0.0377156,103080.0,103070.0,0.58045721]
[1762567410977,0.0154456,103080.0,103070.0,0.58045721]
[1762567411175,0.0375456,103080.0,103070.0,0.58045721]
[1762567411777,0.02632685,103090.0,103070.0,0.69102982]
[1762567412073,0.10550022,103110.0,103090.0,0.1941316]
[1762567412376,0.10550022,103110.0,103100.0,0.92922901]
[1762567412377,0.05755,103110.0,103100.0,0.92922901]
[1762567412977,0.05755,103110.0,103100.0,0.83217261]
[1762567413181,0.7545969,103110.0,103100.0,0.7216]
[1762567413470,0.82646712,103110.0,103100.0,0.7316]
[1762567413675,0.82846712,103110.0,103100.0,0.7356]
[1762567414480,0.82746712,103110.0,103100.0,0.7346]
[1762567414681,0.22746712,103110.0,103100.0,0.7346]
[1762567414878,0.23752605,103110.0,103100.0,0.7346]
[1762567415076,0.23752605,103110.0,103100.0,0.8316564]
[1762567415277,0.23536787,103110.0,103100.0,0.7246]
[1762567415477,0.16565583,103110.0,103100.0,0.7256]
[1762567415677,0.16565583,103110.0,103100.0,0.8226564]
[1762567417580,0.25288342,103110.0,103100.0,0.8226564]
[1762567418781,0.16565583,103110.0,103100.0,0.8226564]
[1762567419584,0.25289506,103110.0,103100.0,0.8226564]
[1762567419879,0.16565583,103110.0,103100.0,0.8226564]
[1762567420098,0.48575823,103110.0,103100.0,0.004]
[1762567420287,0.84655823,103110.0,103100.0,0.004]
[1762567420588,0.1543164,103100.0,103090.0,0.3609456]
[1762567420879,0.27660579,103100.0,103090.0,0.3609456]
[1762567421286,0.27660579,103100.0,103090.0,0.4580114]
[1762567421976,0.27760579,103100.0,103090.0,0.4630114]
[1762567422184,0.27860579,103100.0,103090.0,0.4690114]
[1762567425584,0.27860579,103100.0,103090.0,0.57958401]
[1762567425785,0.27860579,103100.0,103090.0,0.48251821]
[1762567426086,0.1563164,103100.0,103090.0,0.48251821]
[1762567426289,0.1563164,103100.0,103090.0,0.3719456]
[1762567426477,0.27860579,103100.0,103090.0,0.3719456]
[1762567426681,0.36585162,103100.0,103090.0,0.3719456]
[1762567426886,0.24356223,103100.0,103090.0,0.4690114]
[1762567427387,0.1563164,103100.0,103090.0,0.4690114]
[1762567428486,0.05926,103100.0,103090.0,0.4690114]
[1762567428883,0.05926,103100.0,103090.0,0.57958401]
[1762567429488,0.1563163,103100.0,103090.0,0.57958401]
[1762567429985,0.05926,103100.0,103090.0,0.57958401]
[1762567430579,0.14650583,103100.0,103090.0,0.57958401]
[1762567430892,0.12904739,103100.0,103090.0,0.57958401]
[1762567435184,0.14650583,103100.0,103090.0,0.72918401]
[1762567438586,0.14650583,103100.0,103090.0,1.08998401]
[1762567440081,0.12902237,103100.0,103090.0,1.08998401]
[1762567440281,0.08500237,103100.0,103090.0,1.08998401]
[1762567442692,0.08500237,103100.0,103090.0,0.94038401]
[1762567442894,0.07176237,103100.0,103090.0,1.18286401]
[1762567443583,0.08482237,103100.0,103090.0,0.94038401]
[1762567443790,0.13019237,103100.0,103090.0,1.33246401]
[1762567443994,0.13019237,103100.0,103090.0,1.08998401]
[1762567445097,0.06043,103100.0,103090.0,1.08998401]
[1762567445793,0.03728,103100.0,103090.0,1.08998401]
[1762567446292,0.03728,103100.0,103090.0,1.33246401]
[1762567446600,0.01506,103100.0,103090.0,1.08998401]
[1762567446798,0.002,103100.0,103090.0,1.08998401]
[1762567446987,0.002,103100.0,103090.0,1.33246401]
[1762567447594,0.01506,103100.0,103090.0,1.33246401]
[1762567448395,0.01506,103100.0,103090.0,1.38760726]
[1762567449099,0.01506,103100.0,103090.0,1.14512726]
[1762567449290,0.03728,103100.0,103090.0,1.14512726]
[1762567449488,0.01506,103100.0,103090.0,1.14512726]
[1762567450796,0.002,103100.0,103090.0,1.17127611]
[1762567451397,0.01506,103100.0,103090.0,1.17127611]
[1762567451985,0.002,103100.0,103090.0,1.25413404]
[1762567452190,0.01005893,103110.0,103100.0,0.0970563]
[1762567452391,0.12851797,103120.0,103100.0,0.80348639]
[1762567452592,0.12851797,103120.0,103110.0,0.62356276]
[1762567452895,0.0587556,103120.0,103110.0,0.77316276]
[1762567453694,0.07087846,103120.0,103110.0,0.77316276]
[1762567455201,0.07187846,103120.0,103110.0,0.77316276]
[1762567456287,0.07187846,103120.0,103110.0,0.5104]
[1762567456288,0.16891596,103120.0,103110.0,0.5104]
[1762567456601,0.16891596,103120.0,103110.0,0.59325793]
[1762567456993,0.32153626,103120.0,103110.0,0.3608]
[1762567457195,0.33901972,103120.0,103110.0,0.3608]
[1762567457503,0.25616179,103120.0,103110.0,0.3608]
[1762567457706,0.25616179,103120.0,103110.0,0.44365793]
[1762567457999,0.25616179,103120.0,103110.0,0.08285793]
[1762567458199,0.25616179,103120.0,103110.0,0.3608]
[1762567458399,0.25616179,103120.0,103110.0,0.44365793]
[1762567458895,0.25616179,103120.0,103110.0,0.54070483]
[1762567459296,0.15912429,103120.0,103110.0,0.54070483]
[1762567459503,0.15912429,103120.0,103110.0,0.62356276]
[1762567459696,0.22882874,103120.0,103110.0,0.62356276]
[1762567459891,0.14158291,103120.0,103110.0,0.62356276]
[1762567460100,0.14158291,103120.0,103110.0,0.54070483]
[1762567461596,0.07187846,103120.0,103110.0,0.54070483]
[1762567461802,0.15912429,103120.0,103110.0,0.54070483]
[1762567463398,0.07187846,103120.0,103110.0,0.54070483]
[1762567464102,0.14160878,103120.0,103110.0,0.54070483]
[1762567464706,0.23864628,103120.0,103110.0,0.54070483]
[1762567465406,0.16891596,103120.0,103110.0,0.54070483]
[1762567465898,0.07187846,103120.0,103110.0,0.54070483]
[1762567466509,0.14162456,103120.0,103110.0,0.54070483]
[1762567467508,0.07187846,103120.0,103110.0,0.54070483]
[1762567470404,0.07187846,103120.0,103110.0,0.69030483]
[1762567472416,0.07187846,103120.0,103110.0,0.77316276]
[1762567472614,0.14167188,103120.0,103110.0,0.77316276]
[1762567474005,0.23870938,103120.0,103110.0,0.69030483]
[1762567474613,0.16891596,103120.0,103110.0,0.69030483]
[1762567474915,0.25616179,103120.0,103110.0,0.69030483]
[1762567477409,0.15912429,103120.0,103110.0,0.69030483]
[1762567480017,0.25616179,103120.0,103110.0,0.69030483]
[1762567483109,0.15912429,103120.0,103110.0,0.69030483]
[1762567485222,0.07187846,103120.0,103110.0,0.69030483]
[1762567485414,0.19416785,103120.0,103110.0,0.69030483]
[1762567485614,0.28145509,103120.0,103110.0,0.69030483]
[1762567485815,0.1591657,103120.0,103110.0,0.69030483]
[1762567487522,0.1591657,103120.0,103110.0,0.77316276]
[1762567494220,0.07187846,103120.0,103110.0,0.77316276]
[1762567494727,0.19416785,103120.0,103110.0,0.77316276]
[1762567495030,0.28150435,103120.0,103110.0,0.77316276]
[1762567495538,0.15921496,103120.0,103110.0,0.77316276]
[1762567495726,0.15921496,103120.0,103110.0,0.69030483]
[1762567497832,0.15921496,103120.0,103110.0,0.54070483]
[1762567500442,0.25625246,103120.0,103110.0,0.44365793]
[1762567500744,0.25625246,103120.0,103110.0,0.54070483]
[1762567502046,0.15921496,103120.0,103110.0,0.54070483]
[1762567504245,0.15921496,103120.0,103110.0,0.62356276]
[1762567504837,0.22286589,103130.0,103110.0,0.88183248]
[1762567505042,0.20540262,103130.0,103120.0,0.62355336]
[1762567505248,0.08311323,103130.0,103120.0,0.77315336]
[1762567505444,0.12620323,103130.0,103120.0,0.77315336]
[1762567506152,0.12720323,103130.0,103120.0,0.62355336]
[1762567507347,0.08311323,103130.0,103120.0,0.62455336]
[1762567507548,0.09304434,103130.0,103120.0,0.62455336]
[1762567507845,0.09304434,103130.0,103120.0,0.70741129]
[1762567508345,0.09304434,103130.0,103120.0,0.67968036]
[1762567509244,0.02317111,103130.0,103120.0,0.67968036]
[1762567509746,0.09304434,103130.0,103120.0,0.67968036]
[1762567510352,0.02317111,103130.0,103120.0,0.67968036]
[1762567513053,0.04433111,103130.0,103120.0,0.67968036]
[1762567513352,0.02317111,103130.0,103120.0,0.67968036]
[1762567514552,0.00993111,103130.0,103120.0,0.67968036]
[1762567514749,0.10423883,103140.0,103130.0,0.0970281]
[1762567514951,0.08307883,103140.0,103130.0,0.56824953]
[1762567515154,0.0132056,103140.0,103130.0,0.56824953]
[1762567516054,0.0142056,103140.0,103130.0,0.56824953]
[1762567516252,0.01224036,103140.0,103130.0,0.56824953]
[1762567516455,0.01224036,103140.0,103130.0,0.81064953]
[1762567518157,0.01224036,103140.0,103130.0,0.56824953]
[1762567518657,0.02576036,103140.0,103130.0,0.56824953]
[1762567519251,0.06885036,103140.0,103130.0,0.56824953]
[1762567519451,0.06885036,103140.0,103130.0,0.5939263]
[1762567520250,0.06885036,103140.0,103130.0,0.7435263]
[1762567520451,0.06885036,103140.0,103130.0,0.71784953]
[1762567531264,0.02576036,103140.0,103130.0,0.56824953]
[1762567531563,0.01224036,103140.0,103130.0,0.56824953]
[1762567531766,0.02522036,103140.0,103130.0,0.56824953]
[1762567532065,0.02522036,103140.0,103130.0,0.71784953]
[1762567532366,0.02522036,103140.0,103130.0,0.74353966]
[1762567534363,0.06961036,103140.0,103130.0,0.74355896]
[1762567534569,0.06961036,103140.0,103130.0,0.71784953]
[1762567538771,0.25396556,103140.0,103130.0,0.47122143]
[1762567539570,0.15694686,103140.0,103130.0,0.56824953]
[1762567540866,0.15694686,103140.0,103130.0,0.4578281]
[1762567541074,0.15694686,103140.0,103130.0,0.56824953]
[1762567544774,0.25396556,103140.0,103130.0,0.56824953]
[1762567545072,0.25396556,103140.0,103130.0,0.47122143]
[1762567545264,0.23640873,103140.0,103130.0,0.56824953]
[1762567545668,0.13939003,103140.0,103130.0,0.56824953]
[1762567546365,0.23640873,103140.0,103130.0,0.56824953]
[1762567548275,0.13939003,103140.0,103130.0,0.56824953]
[1762567549070,0.23640873,103140.0,103130.0,0.56824953]
[1762567549374,0.23640873,103140.0,103130.0,0.71784953]
[1762567550272,0.13939003,103140.0,103130.0,0.71784953]
[1762567554985,0.23640873,103140.0,103130.0,0.62082143]
[1762567555686,0.23640873,103140.0,103130.0,0.71784953]
[1762567558901,0.16662906,103140.0,103130.0,0.3608]
[1762567559192,0.25396556,103140.0,103130.0,0.3608]
[1762567560393,0.36438699,103140.0,103130.0,0.3608]
[1762567560593,0.25396556,103140.0,103130.0,0.3608]
[1762567561290,0.1416675,103120.0,103110.0,0.6075917]
[1762567561489,0.24234839,103120.0,103110.0,0.6075917]
[1762567562091,0.24234839,103120.0,103110.0,0.71801313]
[1762567562395,0.14531089,103120.0,103110.0,0.71801313]
[1762567562893,0.14731089,103120.0,103110.0,0.73001313]
[1762567563789,0.24434839,103120.0,103110.0,0.73001313]
[1762567564090,0.24434839,103120.0,103110.0,0.58041313]
[1762567564996,0.24434839,103120.0,103110.0,0.48336703]
[1762567565195,0.22686116,103120.0,103110.0,0.48336703]
[1762567565696,0.22686116,103120.0,103110.0,0.3729456]
[1762567566387,0.22686116,103120.0,103110.0,0.4699926]
[1762567567602,0.22686116,103120.0,103110.0,0.3729456]
[1762567568396,0.24434839,103120.0,103110.0,0.3729456]
[1762567568605,0.35476982,103120.0,103110.0,0.0121456]
[1762567568798,0.155167,103110.0,103100.0,0.3608]
[1762567569100,0.1551858,103090.0,103080.0,0.4578693]
[1762567570191,0.20738592,103090.0,103080.0,0.4578693]
[1762567570497,0.20738592,103090.0,103080.0,0.54078953]
[1762567570800,0.20838592,103090.0,103080.0,0.55478953]
[1762567572002,0.20738592,103090.0,103080.0,0.54078953]
[1762567572195,0.20838592,103090.0,103080.0,0.54078953]
[1762567572797,0.20838592,103090.0,103080.0,0.44372023]
[1762567572998,0.29130615,103090.0,103080.0,0.3608]
[1762567573601,0.20838592,103090.0,103080.0,0.44372023]
[1762567574303,0.20838592,103090.0,103080.0,0.3608]
[1762567574502,0.29130615,103090.0,103080.0,0.3608]
[1762567576801,0.1551951,103080.0,103070.0,0.3609456]
[1762567577004,0.29017639,103080.0,103070.0,0.3609456]
[1762567577393,0.37309662,103080.0,103070.0,0.0001456]
[1762567577701,0.1552046,103070.0,103060.0,0.3608]
[1762567577902,0.29014853,103070.0,103060.0,0.3608]
[1762567578203,0.155214,103060.0,103050.0,0.3608]
[1762567578394,0.23813423,103060.0,103050.0,0.3608]
[1762567578999,0.37307816,103060.0,103050.0,0.3608]
[1762567579300,0.1552234,103050.0,103040.0,0.3609456]
[1762567579507,0.23814363,103050.0,103040.0,0.3609456]
[1762567580605,0.23814363,103050.0,103040.0,0.4580584]
[1762567580804,0.1552234,103050.0,103040.0,0.4580584]
[1762567581205,0.1562234,103050.0,103040.0,0.4680584]
[1762567581596,0.1572234,103050.0,103040.0,0.4730584]
[1762567581905,0.1572234,103050.0,103040.0,0.3759456]
[1762567582901,0.24014363,103050.0,103040.0,0.3759456]
[1762567584195,0.23814363,103050.0,103040.0,0.3609456]
[1762567584401,0.24314363,103050.0,103040.0,0.3629456]
[1762567584999,0.1602234,103050.0,103040.0,0.3629456]
[1762567585198,0.24314363,103050.0,103040.0,0.3629456]
[1762567585415,0.24314363,103050.0,103040.0,0.4600584]
[1762567585700,0.24314363,103050.0,103040.0,0.3629456]
[1762567587804,0.1602234,103050.0,103040.0,0.4600584]
[1762567588006,0.1602234,103050.0,103040.0,0.54297863]
[1762567592110,0.1602234,103050.0,103040.0,0.44586583]
[1762567592414,0.1602234,103050.0,103030.0,0.51050446]
[1762567592415,0.1541328,103040.0,103030.0,0.36090446]
[1762567592706,0.37199696,103040.0,103030.0,0.00010446]
[1762567592907,0.37199696,103040.0,103020.0,0.3608]
[1762567592908,0.1541423,103030.0,103020.0,0.3608]
[1762567593107,0.25004544,103030.0,103020.0,0.3608]
[1762567593306,0.30206914,103030.0,103020.0,0.3608]
[1762567593508,0.1541517,103020.0,103010.0,0.3608]
[1762567593704,0.23707193,103020.0,103010.0,0.3608]
[1762567593905,0.32006197,103020.0,103010.0,0.3608]
[1762567594103,0.37208567,103020.0,103010.0,0.3608]
[1762567595014,0.28916544,103020.0,103010.0,0.3608]
[1762567595213,0.23814174,103020.0,103010.0,0.3708]
[1762567595410,0.23814174,103020.0,103010.0,0.4679411]
[1762567596316,0.23914174,103020.0,103010.0,0.4699411]
[1762567596912,0.15622151,103020.0,103010.0,0.4699411]
[1762567597219,0.23914174,103020.0,103010.0,0.4699411]
[1762567599712,0.29116544,103020.0,103010.0,0.4699411]
[1762567601416,0.368121,103020.0,103010.0,0.3728]
[1762567601717,0.368121,103020.0,103010.0,0.4699411]
[1762567603325,0.368121,103020.0,103010.0,0.55286133]
[1762567603618,0.368121,103020.0,103010.0,0.4699411]
[1762567605218,0.3160973,103020.0,103010.0,0.4699411]
[1762567605413,0.05908981,103020.0,103010.0,0.55286133]
[1762567605720,0.15622151,103020.0,103010.0,0.55286133]
[1762567606112,0.2082605,103020.0,103010.0,0.55286133]
[1762567606314,0.2072605,103020.0,103010.0,0.55086133]
[1762567606616,0.2082605,103020.0,103010.0,0.54386133]
[1762567606921,0.2082605,103020.0,103010.0,0.54886133]
[1762567607718,0.1111288,103020.0,103010.0,0.54886133]
[1762567608722,0.12874145,103020.0,103010.0,0.54886133]
[1762567609524,0.22587315,103020.0,103010.0,0.54886133]
[1762567611622,0.22587315,103020.0,103010.0,0.45172023]
[1762567611927,0.22587315,103020.0,103010.0,0.5362248]
[1762567612526,0.22587315,103020.0,103010.0,0.54886133]
[1762567613137,0.30879338,103020.0,103010.0,0.3688]
[1762567613629,0.30879338,103020.0,103010.0,0.4659411]